bitfinex/quotes_SOLUSD_20240811
["timestamp","ask_amount","ask_price","bid_price","bid_amount"]
[1723347359753,21.8225,156.9,156.81,20.0]
[1723347360655,49.1725,156.94,156.82,74.12706101]
[1723347360856,49.1725,156.94,156.84,15.1891]
[1723347361059,49.1725,156.94,156.85,20.0]
[1723347361060,21.8225,156.94,156.85,20.0]
[1723347361683,27.35,156.96,156.86,0.12549]
[1723347361853,49.1725,156.98,156.86,73.75009709]
[1723347362056,49.1725,156.98,156.87,20.0]
[1723347362275,21.8225,156.98,156.88,73.62461489]
[1723347362449,21.8225,156.98,156.89,20.0]
[1723347362650,49.1725,156.98,156.89,20.0]
[1723347363182,49.1725,156.98,156.87,20.0]
[1723347363748,45.50196,156.97,156.87,20.0]
[1723347364085,27.35,156.96,156.87,20.0]
[1723347364288,45.50196,156.97,156.85,20.0]
[1723347364289,0.12549,156.93,156.85,20.0]
[1723347364453,0.50196,156.93,156.85,20.0]
[1723347365275,45.50196,156.93,156.85,20.0]
[1723347365459,45.50196,156.93,156.84,20.0]
[1723347369370,27.35,156.92,156.84,20.0]
[1723347369557,0.50196,156.91,156.8,42.5391]
[1723347369758,45.50196,156.91,156.8,42.5391]
[1723347370176,0.12549,156.89,156.79,6.4855]
[1723347370486,0.12549,156.87,156.76,42.5391]
[1723347370788,27.35,156.86,156.76,15.1891]
[1723347370959,45.50196,156.87,156.76,42.5391]
[1723347370960,0.50196,156.87,156.76,42.5391]
[1723347371358,0.12549,156.85,156.76,15.1891]
[1723347371579,0.37647,156.85,156.75,6.4855]
[1723347371780,27.35,156.84,156.72,25.17275789]
[1723347372086,0.12549,156.83,156.72,25.17275789]
[1723347372289,0.25098,156.83,156.72,25.17275789]
[1723347372458,0.37647,156.83,156.72,25.17275789]
[1723347372858,27.35,156.84,156.73,27.35]
[1723347373165,0.12549,156.85,156.75,27.35]
[1723347373481,45.50196,156.85,156.75,27.35]
[1723347374063,0.50196,156.85,156.75,27.35]
[1723347374263,45.50196,156.85,156.76,20.0]
[1723347374585,0.25098,156.85,156.76,20.0]
[1723347374776,260.9,156.92,156.77,73.62546833]
[1723347374777,49.1725,156.9,156.77,73.62546833]
[1723347374981,55.5462,156.9,156.78,20.0]
[1723347375355,26.3738,156.89,156.78,20.0]
[1723347375768,27.35,156.88,156.78,20.0]
[1723347376260,45.50196,156.87,156.78,20.0]
[1723347377586,0.12549,156.87,156.78,21.27540752]
[1723347377759,0.25098,156.88,156.78,21.27540752]
[1723347378079,0.12549,156.88,156.78,20.0]
[1723347378869,0.12549,156.87,156.78,20.0]
[1723347379169,45.12549,156.87,156.78,20.0]
[1723347380285,0.37647,156.88,156.78,20.0]
[1723347380789,0.12549,156.87,156.78,20.0]
[1723347381085,0.25098,156.87,156.78,20.0]
[1723347383197,27.35,156.86,156.78,20.0]
[1723347383502,27.35,156.84,156.73,27.35]
[1723347383799,0.50196,156.83,156.73,27.35]
[1723347384196,0.50196,156.83,156.72,25.17275789]
[1723347384399,61.96666,156.83,156.72,25.17275789]
[1723347384581,16.96666,156.83,156.73,27.35]
[1723347385398,45.0,156.82,156.73,27.35]
[1723347385701,0.50196,156.81,156.72,25.17275789]
[1723347386097,0.50196,156.81,156.73,20.0]
[1723347389810,22.40196,156.81,156.73,20.0]
[1723347390911,45.0,156.8,156.73,20.0]
[1723347391202,45.0,156.8,156.68,15.0514]
[1723347391203,21.9,156.75,156.67,6.1959]
[1723347391403,21.9,156.75,156.64,15.8870711]
[1723347391404,21.9,156.75,156.65,21.9]
[1723347391593,21.9,156.75,156.65,31.89744064]
[1723347392079,0.12549,156.74,156.65,31.89744064]
[1723347392286,0.37647,156.74,156.65,31.89744064]
[1723347393203,21.9,156.75,156.65,31.89744064]
[1723347393383,22.99727,156.76,156.67,21.9]
[1723347393582,0.37647,156.75,156.68,20.0]
[1723347394183,21.9,156.73,156.68,20.0]
[1723347394393,0.12549,156.72,156.66,20.0]
[1723347394593,0.37647,156.72,156.66,20.0]
[1723347394914,21.9,156.73,156.65,20.0]
[1723347395613,21.9,156.73,156.64,22.7356711]
[1723347396000,0.12549,156.72,156.64,0.8356711]
[1723347396199,21.9,156.71,156.64,0.8356711]
[1723347397014,16.4647,156.68,156.64,0.8356711]
[1723347398609,0.50196,156.67,156.64,0.8356711]
[1723347399589,45.50196,156.67,156.64,0.8356711]
[1723347400420,16.4647,156.68,156.64,0.8356711]
[1723347402419,0.12549,156.67,156.64,0.8356711]
[1723347402592,0.50196,156.67,156.64,0.8356711]
[1723347402787,16.4647,156.68,156.64,0.8356711]
[1723347404825,6.1561,156.69,156.64,0.8356711]
[1723347405126,37.2407,156.72,156.64,0.8356711]
[1723347405317,43.6216,156.72,156.64,0.8356711]
[1723347405493,37.2407,156.72,156.64,0.8356711]
[1723347407932,45.25098,156.71,156.64,0.8356711]
[1723347409226,0.12549,156.7,156.64,0.8356711]
[1723347409454,22.15098,156.7,156.64,0.8356711]
[1723347410006,22.02549,156.7,156.64,0.8356711]
[1723347414232,0.12549,156.69,156.64,0.8356711]
[1723347414437,0.37647,156.69,156.64,0.8356711]
[1723347417030,21.9,156.68,156.64,0.8356711]
[1723347418231,0.37647,156.69,156.64,0.8356711]
[1723347418232,0.12549,156.69,156.64,0.8356711]
[1723347418551,22.02549,156.7,156.64,0.8356711]
[1723347420242,0.12549,156.69,156.64,0.8356711]
[1723347420414,0.12549,156.68,156.64,0.8356711]
[1723347420733,0.25098,156.68,156.64,0.8356711]
[1723347421422,22.02549,156.68,156.64,0.8356711]
[1723347422035,0.25098,156.67,156.64,0.8356711]
[1723347422247,0.25098,156.66,156.64,0.8356711]
[1723347423125,22.15098,156.66,156.64,0.8356711]
[1723347425936,11.3833175,156.78,156.64,0.8356711]
[1723347426122,6.3805,156.73,156.64,20.8356711]
[1723347426440,21.9,156.72,156.64,20.8356711]
[1723347436470,0.37647,156.73,156.64,42.7356711]
[1723347436661,6.385,156.78,156.64,42.7356711]
[1723347436662,21.9,156.78,156.68,21.9]
[1723347436841,15.9499,156.79,156.69,20.0]
[1723347437043,15.9499,156.79,156.7,23.17609033]
[1723347437242,21.9,156.8,156.71,37.14574326]
[1723347438335,0.12549,156.78,156.71,37.14574326]
[1723347439162,45.25098,156.79,156.71,37.14574326]
[1723347439329,21.9,156.82,156.72,21.9]
[1723347439537,21.9,156.82,156.73,20.0]
[1723347440234,28.043,156.84,156.73,20.0]
[1723347440438,21.9,156.84,156.74,44.0232]
[1723347440649,21.9,156.86,156.76,21.9]
[1723347440943,15.2175,156.87,156.77,21.27546881]
[1723347441143,21.9,156.9,156.8,21.9]
[1723347441348,28.425,156.92,156.81,42.1232]
[1723347441550,21.9,156.88,156.81,20.0]
[1723347442061,21.9,156.88,156.79,20.0]
[1723347442858,45.12549,156.87,156.79,20.0]
[1723347443461,0.37647,156.86,156.79,20.0]
[1723347446336,0.25098,156.85,156.79,20.0]
[1723347446541,45.25098,156.85,156.78,20.0]
[1723347446772,0.37647,156.84,156.78,20.0]
[1723347451346,0.25098,156.83,156.78,20.0]
[1723347452657,0.25098,156.83,156.77,22.1232]
[1723347452847,22.15098,156.82,156.73,22.1232]
[1723347453354,0.12549,156.79,156.73,22.1232]
[1723347453556,0.37647,156.79,156.69,44.0232]
[1723347453758,11.08549,156.78,156.7,10.96]
[1723347454157,11.08549,156.78,156.69,22.1232]
[1723347454158,0.12549,156.78,156.71,10.96]
[1723347454366,0.25098,156.78,156.72,10.96]
[1723347455768,21.92,156.76,156.69,22.1232]
[1723347455976,0.37647,156.75,156.69,22.1232]
[1723347456546,0.37647,156.75,156.66,21.92]
[1723347456778,45.37647,156.75,156.66,21.92]
[1723347456947,0.12549,156.74,156.66,21.92]
[1723347457653,0.12549,156.74,156.67,20.0]
[1723347459084,0.12549,156.74,156.65,22.1232]
[1723347459271,0.12549,156.71,156.64,0.8356711]
[1723347459470,0.37647,156.71,156.64,0.8356711]
[1723347460085,22.04549,156.74,156.64,24.0323142]
[1723347460390,45.37647,156.73,156.64,22.2556711]
[1723347460563,0.12549,156.72,156.64,22.2556711]
[1723347462198,0.12549,156.72,156.65,20.0]
[1723347463580,0.12549,156.72,156.64,0.3356711]
[1723347464800,0.12549,156.71,156.63,19.8356711]
[1723347464972,45.37647,156.71,156.63,19.8356711]
[1723347465174,0.12549,156.7,156.62,21.92]
[1723347465494,0.12549,156.69,156.62,21.92]
[1723347465788,0.37647,156.69,156.62,21.92]
[1723347465995,0.12549,156.68,156.61,32.12690922]
[1723347466201,0.37647,156.68,156.61,32.12690922]
[1723347466689,0.37647,156.68,156.62,41.92]
[1723347467196,0.12549,156.67,156.57,22.15087174]
[1723347467403,45.37647,156.67,156.58,21.92]
[1723347467693,0.12549,156.66,156.58,21.92]
[1723347467891,0.37647,156.66,156.58,21.92]
[1723347468304,0.37647,156.66,156.57,32.15150842]
[1723347468305,21.92,156.64,156.57,0.02067174]
[1723347469171,0.12549,156.63,156.57,0.02067174]
[1723347469374,45.50196,156.63,156.57,0.02067174]
[1723347469694,0.12549,156.61,156.57,0.02067174]
[1723347471695,0.37647,156.63,156.57,0.02067174]
[1723347472391,15.962,156.65,156.57,0.02067174]
[1723347472588,15.962,156.65,156.57,20.02067174]
[1723347473697,0.37647,156.64,156.57,20.02067174]
[1723347476386,16.08749,156.65,156.58,1.2771315]
[1723347477021,15.962,156.65,156.57,20.02067174]
[1723347477699,0.25098,156.66,156.58,23.19706733]
[1723347477869,0.25098,156.67,156.59,20.0]
[1723347478072,0.25098,156.67,156.6,1.27692581]
[1723347478294,6.611,156.68,156.61,1.2769116]
[1723347478884,6.611,156.68,156.61,21.2769116]
[1723347479087,15.962,156.69,156.62,21.92]
[1723347479285,15.962,156.69,156.63,21.27668129]
[1723347479509,15.962,156.69,156.63,20.0]
[1723347481599,0.12549,156.67,156.63,20.0]
[1723347481909,0.12549,156.67,156.61,20.0]
[1723347482101,0.25098,156.67,156.61,20.0]
[1723347482486,45.25098,156.68,156.61,20.0]
[1723347482487,0.25098,156.68,156.61,20.0]
[1723347482686,37.882,156.69,156.61,20.0]
[1723347482996,15.962,156.69,156.61,20.0]
[1723347483599,15.962,156.69,156.61,21.27679966]
[1723347483907,15.962,156.69,156.61,20.0]
[1723347485791,15.962,156.69,156.61,30.97]
[1723347485792,26.932,156.69,156.61,30.97]
[1723347486124,0.12549,156.68,156.61,30.97]
[1723347486302,10.97,156.67,156.61,20.0]
[1723347486493,10.97,156.67,156.6,20.0]
[1723347486694,45.50196,156.68,156.6,20.0]
[1723347486695,10.97,156.65,156.6,20.0]
[1723347487004,10.97,156.65,156.57,10.99067174]
[1723347487208,45.37647,156.66,156.57,0.02067174]
[1723347487209,10.97,156.64,156.57,0.02067174]
[1723347487513,10.97,156.63,156.57,0.02067174]
[1723347487811,21.95,156.64,156.57,0.02067174]
[1723347490605,0.12549,156.61,156.57,0.02067174]
[1723347490813,0.37647,156.61,156.57,0.02067174]
[1723347491193,0.12549,156.66,156.57,0.02067174]
[1723347491194,21.95,156.64,156.57,0.02067174]
[1723347491401,21.95,156.67,156.57,0.02067174]
[1723347492094,22.2935,156.68,156.58,21.95]
[1723347492414,22.2935,156.68,156.59,21.27690986]
[1723347492589,22.2935,156.68,156.6,21.95]
[1723347492795,22.2935,156.68,156.61,21.27679497]
[1723347492993,22.2935,156.68,156.61,20.0]
[1723347494498,67.45196,156.67,156.61,20.0]
[1723347494698,67.45196,156.67,156.59,20.0]
[1723347495501,67.45196,156.67,156.57,20.02067174]
[1723347495811,67.45196,156.67,156.57,21.29770479]
[1723347496021,67.45196,156.67,156.58,21.95]
[1723347496322,22.45196,156.67,156.59,20.0]
[1723347497401,22.45196,156.67,156.57,20.02067174]
[1723347497631,21.95,156.65,156.57,20.02067174]
[1723347497793,25.50196,156.64,156.57,20.02067174]
[1723347497992,0.12549,156.64,156.57,20.02067174]
[1723347498802,0.12549,156.64,156.57,0.02067174]
[1723347500017,0.12549,156.63,156.57,0.02067174]
[1723347500223,0.25098,156.63,156.57,0.02067174]
[1723347500398,0.25098,156.62,156.57,0.02067174]
[1723347501405,22.20098,156.61,156.57,0.02067174]
[1723347501602,22.20098,156.61,156.52,16.0038]
[1723347501938,22.20098,156.61,156.53,45.0]
[1723347503225,22.20098,156.61,156.54,20.0]
[1723347505102,0.25098,156.61,156.54,20.0]
[1723347507829,0.25098,156.62,156.54,21.27744722]
[1723347508010,0.25098,156.62,156.55,23.22736304]
[1723347508204,0.25098,156.62,156.56,20.0]
[1723347508429,0.25098,156.61,156.56,20.0]
[1723347508723,0.25098,156.6,156.56,20.0]
[1723347508922,0.25098,156.6,156.54,20.0]
[1723347509103,21.95,156.65,156.55,21.95]
[1723347509301,21.95,156.69,156.57,21.95]
[1723347509511,21.95,156.69,156.58,45.0]
[1723347509726,21.95,156.69,156.59,20.0]
[1723347510413,28.6759,156.68,156.59,20.0]
[1723347510929,22.472,156.68,156.59,36.0462]
[1723347511134,16.0896,156.68,156.59,57.9962]
[1723347512626,0.12549,156.67,156.59,57.9962]
[1723347512832,0.37647,156.67,156.59,57.9962]
[1723347513026,0.50196,156.67,156.59,57.9962]
[1723347515228,0.50196,156.67,156.59,59.27317722]
[1723347515415,0.50196,156.67,156.59,57.9962]
[1723347516417,0.50196,156.67,156.59,59.27315669]
[1723347516619,0.50196,156.67,156.59,57.9962]
[1723347517704,21.95,156.66,156.59,36.0462]
[1723347517930,0.12549,156.64,156.59,20.0]
[1723347519534,0.12549,156.64,156.55,16.0462]
[1723347519734,67.07549,156.64,156.55,16.0462]
[1723347519937,0.12549,156.62,156.55,16.0462]
[1723347520234,0.25098,156.62,156.55,16.0462]
[1723347520613,0.12549,156.61,156.55,16.0462]
[1723347520815,0.37647,156.61,156.55,16.0462]
[1723347521231,0.37647,156.61,156.56,20.0]
[1723347521722,0.12549,156.63,156.56,20.0]
[1723347521922,0.50196,156.63,156.56,20.0]
[1723347523646,0.50196,156.63,156.56,41.95]
[1723347523814,15.1852,156.65,156.56,41.95]
[1723347523815,0.12549,156.65,156.56,41.95]
[1723347524137,0.50196,156.65,156.56,43.22714049]
[1723347524548,0.50196,156.65,156.56,41.95]
[1723347525026,0.25098,156.65,156.56,41.95]
[1723347525229,0.12549,156.67,156.58,21.95]
[1723347525434,0.37647,156.67,156.58,21.95]
[1723347525611,0.12549,156.66,156.59,20.0]
[1723347525816,0.37647,156.66,156.59,20.0]
[1723347529815,0.12549,156.68,156.6,21.95]
[1723347530016,0.50196,156.68,156.6,21.95]
[1723347531947,0.50196,156.68,156.6,23.22691248]
[1723347532935,0.37647,156.68,156.62,21.95]
[1723347533256,15.1852,156.74,156.64,21.95]
[1723347533458,15.1852,156.74,156.66,21.95]
[1723347533760,260.9,156.75,156.66,21.95]
[1723347533960,21.95,156.75,156.66,21.95]
[1723347534145,6.3803,156.74,156.66,21.95]
[1723347535352,21.95,156.77,156.66,23.22643132]
[1723347535663,6.3787,156.77,156.68,21.95]
[1723347535957,6.3787,156.77,156.69,20.0]
[1723347537345,21.95,156.79,156.69,20.0]
[1723347537560,6.3776,156.8,156.7,21.95]
[1723347537858,6.3776,156.8,156.71,20.0]
[1723347538254,28.3271,156.81,156.72,21.95]
[1723347538459,6.3771,156.81,156.72,21.95]
[1723347539150,43.5119,156.82,156.72,21.95]
[1723347539354,15.9675,156.86,156.76,21.95]
[1723347539569,21.95,156.87,156.76,21.95]
[1723347539749,267.2745,156.88,156.78,21.95]
[1723347539950,267.2745,156.88,156.79,20.0]
[1723347540146,21.95,156.89,156.79,20.0]
[1723347540465,22.3413,156.9,156.81,16.2493]
[1723347540649,22.3413,156.9,156.82,20.0]
[1723347540856,28.3439,156.91,156.82,41.95]
[1723347540857,12.767,156.91,156.82,41.95]
[1723347541056,37.9175,156.94,156.84,21.95]
[1723347541243,21.95,156.96,156.86,21.95]
[1723347541454,21.95,156.96,156.87,20.0]
[1723347541757,6.3709,156.97,156.87,20.0]
[1723347541960,28.3209,156.97,156.87,20.0]
[1723347542169,15.9675,156.99,156.87,20.0]
[1723347542348,21.95,156.97,156.87,20.0]
[1723347542547,6.3939,157.0,156.88,21.95]
[1723347542744,6.3939,157.0,156.89,20.0]
[1723347542944,21.95,156.99,156.89,20.0]
[1723347543150,268.79872552,157.01,156.9,21.95]
[1723347543151,267.269,157.01,156.9,21.95]
[1723347543376,6.3694,157.0,156.91,20.0]
[1723347543884,21.95,157.02,156.91,20.0]
[1723347544551,21.95,157.02,156.92,21.95]
[1723347544750,21.95,157.02,156.93,20.0]
[1723347544964,28.3187,157.02,156.93,20.0]
[1723347546363,0.50196,157.01,156.93,20.0]
[1723347546551,21.95,156.98,156.9,16.2493]
[1723347546746,21.95,156.98,156.88,21.95]
[1723347546747,0.50196,156.97,156.88,21.95]
[1723347546946,0.12549,156.93,156.85,22.7994]
[1723347547153,0.50196,156.93,156.85,22.7994]
[1723347548656,21.95,156.92,156.85,6.5501]
[1723347548975,0.37647,156.91,156.81,6.5501]
[1723347549266,0.50196,156.91,156.81,6.5501]
[1723347550042,6.3736,156.9,156.81,6.5501]
[1723347550268,45.50196,156.89,156.81,6.5501]
[1723347550446,0.50196,156.89,156.81,6.5501]
[1723347550850,0.37647,156.89,156.81,6.5501]
[1723347551862,21.95,156.92,156.82,41.95]
[1723347552092,21.95,156.94,156.82,41.95]
[1723347553067,28.3218,156.94,156.82,41.95]
[1723347553371,45.50196,156.93,156.82,41.95]
[1723347553751,72.84196,156.93,156.82,20.0]
[1723347557475,45.50196,156.93,156.83,27.34]
[1723347557680,0.50196,156.93,156.84,20.0]
[1723347559290,0.50196,156.93,156.85,27.34]
[1723347559458,0.50196,156.93,156.86,20.0]
[1723347562782,0.50196,156.93,156.84,20.0]
[1723347564988,6.3939,156.95,156.85,28.61499001]
[1723347565162,6.3939,156.95,156.86,20.0]
[1723347566686,6.3939,156.95,156.87,27.34]
[1723347566989,6.3939,156.95,156.88,20.0]
[1723347568190,0.37647,156.96,156.88,20.0]
[1723347568397,0.37647,156.95,156.88,20.0]
[1723347571497,0.37647,156.95,156.87,20.0]
[1723347572592,0.37647,156.95,156.87,19.5]
[1723347573900,0.25098,156.94,156.87,19.5]
[1723347574196,0.12549,156.92,156.83,21.86]
[1723347574400,0.25098,156.92,156.83,21.86]
[1723347574576,0.25098,156.91,156.83,21.86]
[1723347574904,0.25098,156.9,156.83,21.86]
[1723347576175,0.25098,156.9,156.84,20.0]
[1723347577089,21.86,156.93,156.84,20.0]
[1723347577276,15.9675,156.98,156.84,20.0]
[1723347577277,21.86,156.95,156.85,21.86]
[1723347577583,21.86,156.95,156.86,20.0]
[1723347578496,0.25098,156.94,156.86,20.0]
[1723347578698,0.25098,156.93,156.86,20.0]
[1723347578880,0.12549,156.92,156.86,20.0]
[1723347579786,0.12549,156.91,156.84,20.0]
[1723347579996,0.37647,156.91,156.84,20.0]
[1723347580172,0.12549,156.9,156.84,20.0]
[1723347580378,0.12549,156.89,156.84,20.0]
[1723347580690,0.37647,156.89,156.84,20.0]
[1723347582067,0.37647,156.89,156.82,20.0]
[1723347582970,0.12549,156.9,156.83,21.86]
[1723347583188,0.37647,156.9,156.84,20.0]
[1723347583794,0.37647,156.9,156.83,21.86]
[1723347583975,0.12549,156.89,156.81,28.4101]
[1723347584172,0.12549,156.89,156.81,21.86]
[1723347586194,0.12549,156.87,156.79,21.86]
[1723347586374,0.50196,156.87,156.8,20.0]
[1723347588298,6.87686,156.87,156.8,20.0]
[1723347588502,6.87686,156.87,156.78,20.0]
[1723347588799,28.73686,156.87,156.78,20.0]
[1723347589008,28.73686,156.87,156.65,21.86]
[1723347589009,6.50189,156.83,156.73,44.5776]
[1723347589307,0.12549,156.81,156.73,44.5776]
[1723347590791,0.12549,156.81,156.73,38.1992]
[1723347591096,0.12549,156.81,156.73,21.86]
[1723347591302,0.12549,156.81,156.74,20.0]
[1723347591484,21.98549,156.81,156.72,20.0]
[1723347591678,0.12549,156.79,156.72,20.0]
[1723347592882,0.12549,156.8,156.73,21.86]
[1723347593089,0.12549,156.82,156.74,20.0]
[1723347593391,0.50196,156.82,156.74,20.0]
[1723347593598,0.50196,156.82,156.75,21.86]
[1723347593786,28.2348,156.87,156.76,65.0]
[1723347593985,21.86,156.87,156.77,21.86]
[1723347594801,28.2348,156.87,156.77,21.86]
[1723347595110,0.12549,156.85,156.77,21.86]
[1723347595313,0.25098,156.85,156.77,21.86]
[1723347595496,0.12549,156.85,156.77,21.86]
[1723347597311,0.25098,156.85,156.77,21.86]
[1723347599990,15.1997,156.84,156.78,20.0]
[1723347605210,22.6509,156.88,156.79,23.13532892]
[1723347605507,28.235,156.87,156.78,20.0]
[1723347606515,6.50059,156.86,156.78,20.0]
[1723347606692,0.25098,156.85,156.78,20.0]
[1723347606889,0.12549,156.84,156.78,20.0]
[1723347607216,0.25098,156.84,156.76,20.0]
[1723347607382,16.0055,156.81,156.73,21.86]
[1723347607798,6.83808,156.8,156.71,21.86]
[1723347608412,0.12549,156.78,156.69,21.86]
[1723347608711,0.25098,156.78,156.69,21.86]
[1723347609815,0.25098,156.78,156.7,20.0]
[1723347610117,0.12549,156.76,156.67,21.86]
[1723347610428,0.37647,156.76,156.67,21.86]
[1723347611288,0.37647,156.76,156.68,20.0]
[1723347615424,0.25098,156.76,156.68,20.0]
[1723347615600,6.378,156.79,156.69,66.86]
[1723347615601,0.12549,156.79,156.69,66.86]
[1723347615915,22.23647,156.79,156.7,20.0]
[1723347616910,0.12549,156.78,156.7,20.0]
[1723347617110,0.37647,156.78,156.7,20.0]
[1723347617710,0.12549,156.79,156.71,21.86]
[1723347617917,0.50196,156.79,156.72,20.0]
[1723347618227,0.37647,156.79,156.72,20.0]
[1723347619011,22.23647,156.79,156.72,20.0]
[1723347619206,22.23647,156.79,156.7,20.0]
[1723347619644,0.12549,156.78,156.7,20.0]
[1723347621043,0.37647,156.79,156.71,21.86]
[1723347621239,0.37647,156.79,156.7,20.0]
[1723347621240,0.25098,156.79,156.73,21.86]
[1723347621527,0.12549,156.79,156.74,20.0]
[1723347622104,0.12549,156.79,156.59,6.6233]
[1723347622105,21.86,156.77,156.59,6.6233]
[1723347622317,21.86,156.74,156.64,21.86]
[1723347622535,22.5284,156.73,156.64,21.86]
[1723347623231,22.5284,156.73,156.61,6.6641581]
[1723347623232,22.5284,156.73,156.66,21.86]
[1723347623738,22.5284,156.73,156.67,45.0]
[1723347623939,22.5284,156.73,156.68,20.0]
[1723347625440,16.4141,156.73,156.68,20.0]
[1723347627243,16.4141,156.73,156.68,21.27613286]
[1723347627443,16.4141,156.73,156.68,43.13613286]
[1723347627847,16.4141,156.73,156.68,41.86]
[1723347629047,16.4141,156.73,156.68,20.0]
[1723347630543,16.4141,156.73,156.68,43.13617408]
[1723347633432,16.4141,156.73,156.68,41.86]
[1723347633757,16.4141,156.73,156.68,43.13610713]
[1723347633932,16.4141,156.73,156.68,41.86]
[1723347634249,16.4141,156.73,156.68,20.0]
[1723347634622,22.5284,156.77,156.68,20.0]
[1723347634822,22.5284,156.77,156.7,21.86]
[1723347635029,22.5284,156.77,156.71,46.2758872]
[1723347635441,22.5284,156.77,156.71,45.0]
[1723347636044,22.5284,156.77,156.71,46.27587982]
[1723347637028,22.5284,156.77,156.71,45.0]
[1723347637554,22.5284,156.77,156.72,1.27577807]
[1723347638057,16.4141,156.81,156.72,21.86]
[1723347638227,6.378,156.79,156.73,20.0]
[1723347638429,21.86,156.78,156.71,45.0]
[1723347638627,6.3787,156.78,156.72,20.0]
[1723347638853,6.3788,156.77,156.71,45.0]
[1723347639528,28.2384,156.78,156.71,45.0]
[1723347640247,16.4141,156.81,156.54,20.0]
[1723347640248,21.86,156.76,156.66,21.86]
[1723347640427,22.3446,156.75,156.67,20.0]
[1723347642634,22.3446,156.75,156.68,45.0]
[1723347642836,22.3446,156.75,156.69,20.0]
[1723347643254,28.2403,156.74,156.64,21.86]
[1723347643437,28.2403,156.74,156.65,20.0]
[1723347644754,21.86,156.72,156.62,31.85869854]
[1723347644965,6.50669,156.71,156.62,31.85869854]
[1723347645133,21.86,156.7,156.62,9.99869854]
[1723347645651,22.3446,156.69,156.6,21.86]
[1723347646156,22.3446,156.69,156.62,21.86]
[1723347646327,22.3446,156.69,156.63,20.0]
[1723347647060,22.3446,156.69,156.64,45.0]
[1723347647932,22.3446,156.69,156.63,20.0]
[1723347648137,16.1598,156.69,156.62,21.86]
[1723347648333,16.1598,156.69,156.63,21.27645206]
[1723347648830,16.1598,156.69,156.63,20.0]
[1723347649229,16.1598,156.69,156.64,45.0]
[1723347650037,16.1598,156.69,156.63,20.0]
[1723347650243,16.1598,156.69,156.61,20.0]
[1723347650453,16.1598,156.69,156.62,45.0]
[1723347650655,16.1598,156.69,156.63,1.27654424]
[1723347650863,16.1598,156.69,156.63,21.27654424]
[1723347651371,16.1598,156.69,156.63,20.0]
[1723347651537,16.1598,156.69,156.64,45.0]
[1723347653483,22.3446,156.73,156.66,21.86]
[1723347653767,16.1598,156.73,156.67,66.27606947]
[1723347653957,16.1598,156.73,156.67,65.0]
[1723347654467,16.1598,156.73,156.67,20.0]
[1723347654667,16.1598,156.73,156.65,20.0]
[1723347654968,16.1598,156.73,156.66,45.0]
[1723347655269,16.1598,156.73,156.67,20.0]
[1723347655270,38.0198,156.73,156.67,20.0]
[1723347655654,0.25098,156.72,156.62,21.86]